fUST/lending_fUST_20250219
["ID","MTS","AMOUNT","RATE_DAILY","PERIOD"]
[353561054,1739914260736,-349.0,0.00015461,2]
[353561055,1739914260745,-314.0,0.00015461,2]
[353561056,1739914260755,-349.0,0.00015461,2]
[353561057,1739914260765,-314.0,0.00015461,2]
[353561058,1739914260775,-349.0,0.00015461,2]
[353561059,1739914260784,-314.0,0.00015461,2]
[353561060,1739914260793,-314.0,0.00015461,2]
[353561061,1739914260802,-349.0,0.00015461,2]
[353561062,1739914260812,-349.0,0.00015461,2]
[353561063,1739914260822,-314.0,0.00015461,2]
[353561064,1739914260831,-349.0,0.00015461,2]
[353561065,1739914260841,-314.0,0.00015461,2]
[353561066,1739914260850,-349.0,0.00015461,2]
[353561067,1739914260859,-314.0,0.00015461,2]
[353561068,1739914260869,-349.0,0.00015461,2]
[353561069,1739914260879,-314.0,0.00015461,2]
[353561070,1739914260888,-349.0,0.00015461,2]
[353561071,1739914260897,-314.0,0.00015461,2]
[353561072,1739914260908,-314.0,0.00015461,2]
[353561073,1739914260918,-349.0,0.00015461,2]
[353561074,1739914260927,-314.0,0.00015461,2]
[353561075,1739914260936,-349.0,0.00015461,2]
[353561076,1739914260946,-314.0,0.00015461,2]
[353561077,1739914260956,-314.0,0.00015461,2]
[353561078,1739914260965,-349.0,0.00015461,2]
[353561079,1739914260974,-349.0,0.00015461,2]
[353561080,1739914260984,-314.0,0.00015461,2]
[353561081,1739914260993,-349.0,0.00015461,2]
[353561082,1739914261002,-314.0,0.00015461,2]
[353561083,1739914261012,-349.0,0.00015461,2]
[353561084,1739914261023,-314.0,0.00015461,2]
[353561085,1739914261034,-349.0,0.00015461,2]
[353561086,1739914261044,-314.0,0.00015461,2]
[353561087,1739914261056,-349.0,0.00015461,2]
[353561088,1739914261066,-314.0,0.00015461,2]
[353561089,1739914261075,-349.0,0.00015461,2]
[353561090,1739914261084,-314.0,0.00015461,2]
[353561091,1739914261094,-349.0,0.00015461,2]
[353561092,1739914261105,-314.0,0.00015461,2]
[353561093,1739914261115,-349.0,0.00015461,2]
[353561094,1739914261125,-314.0,0.00015461,2]
[353561095,1739914261134,-349.0,0.00015461,2]
[353561096,1739914261143,-314.0,0.00015461,2]
[353561097,1739914261152,-349.0,0.00015461,2]
[353561098,1739914261162,-213.6,0.00015461,2]
[353561099,1739914261171,-349.0,0.00015461,2]
[353561100,1739914261181,-349.0,0.00015461,2]
[353561101,1739914261191,-349.0,0.00015461,2]
[353561102,1739914261202,-349.0,0.00015461,2]
[353561103,1739914261211,-349.0,0.00015461,2]
[353561104,1739914261220,-349.0,0.00015461,2]
[353561105,1739914261230,-349.0,0.00015461,2]
[353561106,1739914261242,-349.0,0.00015461,2]
[353561107,1739914261252,-349.0,0.00015461,2]
[353561108,1739914261262,-349.0,0.00015461,2]
[353561109,1739914261271,-420.06921299,0.00015461,2]
[353561110,1739914261281,-300.0,0.000155,5]
[353561111,1739914261290,-1064.25,0.00015506,2]
[353561112,1739914261300,-643.08,0.00015506,2]
[353561113,1739914261309,-816.32,0.00015506,2]
[353561114,1739914261319,-500.0,0.00015506,2]
[353561115,1739914261328,-469.33,0.00015506,2]
[353561116,1739914261337,-521.98,0.00015506,2]
[353561117,1739914261347,-248.84,0.00015506,2]
[353561118,1739914261357,-772.18,0.00015506,2]
[353561119,1739914261366,-506.94,0.00015506,2]
[353561120,1739914261375,-500.0,0.00015506,2]
[353561121,1739914261384,-975.67,0.00015506,2]
[353561122,1739914261394,-546.38,0.00015506,2]
[353561123,1739914261403,-1280.38,0.00015506,2]
[353561124,1739914261414,-703.38,0.00015506,2]
[353561125,1739914261424,-614.31,0.00015506,2]
[353561126,1739914261432,-737.48,0.00015506,2]
[353561127,1739914261442,-622.56,0.00015506,2]
[353561128,1739914261452,-26318.55,0.00015506,2]
[353561129,1739914261461,-1068.88,0.00015506,2]
[353561130,1739914261470,-700.06,0.00015506,2]
[353561131,1739914261480,-723.02,0.00015506,2]
[353561132,1739914261489,-1820.28,0.00015506,2]
[353561133,1739914261499,-500.0,0.00015506,2]
[353561134,1739914261509,-2563.76,0.00015506,2]
[353561135,1739914261518,-3155.81,0.00015506,2]
[353561136,1739914261528,-1599.57,0.00015506,2]
[353561137,1739914261537,-1715.22,0.00015506,2]
[353561138,1739914261547,-1738.43,0.00015506,2]
[353561139,1739914261557,-8846.61,0.00015506,2]
[353561140,1739914261567,-807.83,0.00015506,2]
[353561141,1739914261576,-753.92,0.00015506,2]
[353561142,1739914261586,-569.1,0.00015506,2]
[353561143,1739914261595,-500.0,0.00015506,2]
[353561144,1739914261605,-599.33,0.00015506,2]
[353561145,1739914261615,-781.09,0.00015506,2]
[353561146,1739914261623,-837.18,0.00015506,2]
[353561147,1739914261632,-983.07,0.00015506,2]
[353561148,1739914261641,-336.0,0.0001551,2]
[353561149,1739914261651,-500.54480913,0.00015561,2]
[353561150,1739914261663,-500.0,0.00015561,2]
[353561151,1739914261673,-299.44151707,0.00015561,2]
[353561152,1739914261683,-299.50735996,0.00015561,2]
[353561153,1739914261692,-215.83113556,0.00015561,2]
[353561154,1739914261701,-649.78821843,0.00015561,2]
[353561155,1739914261711,-500.0,0.00015561,2]
[353561156,1739914261721,-924.89072144,0.00015561,2]
[353561157,1739914261730,-161.081112,0.00015561,2]
[353561158,1739914261739,-1064.3348858,0.00015589,2]
[353561159,1739914261749,-643.08,0.00015589,2]
[353561160,1739914261758,-816.45,0.00015589,2]
[353561161,1739914261767,-522.21,0.00015589,2]
[353561162,1739914261777,-772.29697539,0.00015589,2]
[353561163,1739914261786,-507.07600996,0.00015589,2]
[353561164,1739914261796,-398.99,0.00015589,2]
[353561165,1739914261805,-975.7042702,0.00015589,2]
[353561166,1739914261815,-546.46,0.00015589,2]
[353561167,1739914261825,-1280.38439433,0.00015589,2]
[353561168,1739914261834,-267.607392,0.00015589,2]
[353561169,1739914261844,-703.38995271,0.00015589,2]
[353561170,1739914261853,-267.607392,0.00015589,2]
[353561171,1739914261863,-614.39,0.00015589,2]
[353561172,1739914261872,-737.57881909,0.00015589,2]
[353561173,1739914261882,-622.73,0.00015589,2]
[353561174,1739914261891,-26318.5889,0.00015589,2]
[353561175,1739914261900,-1068.97,0.00015589,2]
[353561176,1739914261911,-700.23008702,0.00015589,2]
[353561177,1739914261921,-723.23,0.00015589,2]
[353561178,1739914261931,-1820.35591825,0.00015589,2]
[353561179,1739914261941,-285.75,0.00015589,2]
[353561180,1739914261952,-2563.85,0.00015589,2]
[353561181,1739914261963,-3156.0405989,0.00015589,2]
[353561182,1739914261972,-1599.75,0.00015589,2]
[353561183,1739914261982,-1715.25081758,0.00015589,2]
[353561184,1739914261992,-1738.43784202,0.00015589,2]
[353561185,1739914262001,-8846.65528741,0.00015589,2]
[353561186,1739914262011,-807.91,0.00015589,2]
[353561187,1739914262023,-754.00233756,0.00015589,2]
[353561188,1739914262033,-435.94397076,0.00015589,2]
[353561189,1739914262042,-599.34001913,0.00015589,2]
[353561190,1739914262052,-781.13411287,0.00015589,2]
[353561191,1739914262062,-837.29,0.00015589,2]
[353561192,1739914262072,-250.0,0.00015614,2]
[353561193,1739914262081,-372.03,0.00015614,2]
[353561194,1739914262091,-300.47,0.00015614,2]
[353561195,1739914262101,-1879.75,0.000157,2]
[353561196,1739914262110,-1290.16015705,0.00015722,2]
[353561197,1739914262121,-1424.00008562,0.00015752,2]
[353561198,1739914262130,-400.0,0.00015775,2]
[353561199,1739914262140,-465.00025848,0.00015794,2]
[353561200,1739914262149,-700.0,0.00015808,2]
[353561201,1739914262161,-749.7315903,0.00015835,2]
[353561202,1739914262170,-500.0,0.00015835,2]
[353561203,1739914262180,-2500.0,0.00015899,2]
[353561204,1739914262190,-1430.486816,0.0001594,2]
[353561205,1739914262199,-150.0,0.00016,2]
[353561206,1739914262209,-355.1269712,0.00016024,2]
[353561207,1739914262219,-355.1269712,0.00016024,2]
[353561208,1739914262228,-354.7159283,0.00016024,2]
[353561209,1739914262238,-500.0,0.00016038,2]
[353561210,1739914262247,-161.081112,0.00016074,2]
[353561211,1739914262257,-166.160499,0.00016074,2]
[353561212,1739914262267,-500.0,0.00016109,2]
[353561213,1739914262275,-1424.00008562,0.0001611,2]
[353561214,1739914262284,-161.081112,0.0001611,3]
[353561215,1739914262294,-500.0,0.00016138,2]
[353561216,1739914262303,-499.0,0.00016164,2]
[353561217,1739914262313,-155.6032124,0.00016192,2]
[353561218,1739914262322,-435.719309,0.00016192,2]
[353561219,1739914262332,-366.0269152,0.00016192,2]
[353561220,1739914262341,-151.0,0.000162,2]
[353561221,1739914262351,-647.121979,0.000162,2]
[353561222,1739914262360,-647.121979,0.000162,2]
[353561223,1739914262370,-267.607392,0.000162,2]
[353561224,1739914262379,-267.607392,0.000162,2]
[353561225,1739914262388,-151.0,0.000162,2]
[353561226,1739914262398,-2025.1067,0.000162,2]
[353561227,1739914262409,-2025.1067,0.000162,2]
[353561228,1739914262418,-5661.1311,0.00016208,2]
[353561229,1739914262427,-5000.0,0.00016208,2]
[353561230,1739914262436,-5000.0,0.00016208,2]
[353561231,1739914262446,-5000.0,0.00016208,2]
[353561232,1739914262455,-5000.0,0.00016208,2]
[353561233,1739914262545,-252.76872469,0.00016222,2]
[353561234,1739914262564,-500.0,0.00016238,2]
[353561235,1739914262574,-160.0,0.00016299,3]
[353561236,1739914262583,-500.0,0.00016338,2]
[353561237,1739914262593,-306.0,0.00016356,2]
[353561238,1739914262602,-216.0000907,0.00016356,2]
[353561239,1739914262612,-306.0,0.00016356,2]
[353561240,1739914262622,-154.7234452,0.00016356,2]
[353561241,1739914262631,-216.0000907,0.00016356,2]
[353561242,1739914262642,-154.7234452,0.00016356,2]
[353561243,1739914262652,-154.7234452,0.00016356,2]
[353561244,1739914262663,-216.0000907,0.00016356,2]
[353561245,1739914262672,-500.0,0.00016383,2]
[353561246,1739914262681,-500.0,0.00016438,2]
[353561247,1739914262691,-1000.0,0.00016438,2]
[353561248,1739914262701,-1000.0,0.00016438,2]
[353561249,1739914262710,-1000.0,0.00016438,2]
[353561250,1739914262720,-693.05972138,0.00016438,2]
[353561251,1739914262729,-500.0,0.00016438,2]
[353561252,1739914262739,-500.0,0.00016438,2]
[353561253,1739914262748,-587.0,0.00016449,2]
[353561254,1739914262757,-1424.00008562,0.00016468,2]
[353561255,1739914262767,-13338.05277927,0.000165,2]
[353561256,1739914262787,-7438.69753278,0.000165,7]
[353561257,1739914262798,-136614.04000236,0.00016535,5]
[353561258,1739914262808,-18005.45400478,0.00016535,5]
[353561259,1739914262818,-647.121979,0.00016535,2]
[353561260,1739914262828,-647.121979,0.00016535,2]
[353561261,1739914262839,-500.0,0.00016538,2]
[353561262,1739914262849,-500.0,0.00016638,2]
[353561263,1739914262859,-646.20478311,0.00016657,2]
[353561264,1739914262869,-8000.0,0.000167,2]
[353561265,1739914262879,-500.0,0.00016738,2]
[353561266,1739914262890,-885.46535567,0.000168,7]
[353561267,1739914262900,-1424.00008562,0.00016826,2]
[353561268,1739914262910,-500.0,0.00016838,2]
[353561269,1739914262920,-160.0,0.00016862,4]
[353561270,1739914262930,-500.0,0.00016938,2]
[353561271,1739914262941,-299.999999,0.00017,2]
[353561272,1739914262952,-339.0,0.00017,6]
[353561273,1739914262962,-500.0,0.00017038,2]
[353561274,1739914262973,-355.1269712,0.00017041,2]
[353561275,1739914262983,-355.1269712,0.00017041,2]
[353561276,1739914262993,-355.1269712,0.00017041,2]
[353561277,1739914263004,-355.1269712,0.00017041,2]
[353561278,1739914263014,-355.1269712,0.00017041,2]
[353561279,1739914263026,-150.0,0.000171,4]
[353561280,1739914263038,-150.0,0.000171,4]
[353561281,1739914263049,-500.0,0.00017138,2]
[353561282,1739914263059,-700.0,0.00017178,2]
[353561283,1739914263070,-153.0,0.00017178,2]
[353561284,1739914263080,-215.860309,0.00017178,2]
[353561285,1739914263091,-154.7234452,0.00017178,2]
[353561286,1739914263101,-153.0,0.00017178,2]
[353561287,1739914263111,-306.0,0.00017178,2]
[353561288,1739914263122,-153.0,0.00017178,2]
[353561289,1739914263132,-154.7234452,0.00017178,2]
[353561290,1739914263143,-153.0,0.00017178,2]
[353561291,1739914263153,-153.0,0.00017178,2]
[353561292,1739914263164,-154.7234452,0.00017178,2]
[353561293,1739914263174,-153.0,0.00017178,2]
[353561294,1739914263185,-154.7234452,0.00017178,2]
[353561295,1739914263195,-306.0,0.00017178,2]
[353561296,1739914263205,-153.0,0.00017178,2]
[353561297,1739914263215,-153.0,0.00017178,2]
[353561298,1739914263224,-153.0,0.00017178,2]
[353561299,1739914263234,-309.4750577,0.00017178,2]
[353561300,1739914263244,-216.0000907,0.00017178,2]
[353561301,1739914263254,-362.0499117,0.00017178,2]
[353561302,1739914263264,-154.7234452,0.00017178,2]
[353561303,1739914263274,-216.0000907,0.00017178,2]
[353561304,1739914263284,-157.921159,0.00017178,2]
[353561305,1739914263294,-154.7234452,0.00017178,2]
[353561306,1739914263303,-154.7234452,0.00017178,2]
[353561307,1739914263313,-154.7234452,0.00017178,2]
[353561308,1739914263323,-154.7234452,0.00017178,2]
[353561309,1739914263332,-154.7234452,0.00017178,2]
[353561310,1739914263343,-161.081112,0.00017183,4]
[353561311,1739914263352,-1424.00008562,0.00017184,2]
[353561312,1739914263362,-500.0,0.00017238,2]
[353561313,1739914263373,-161.081112,0.0001728,15]
[353561314,1739914263382,-1000.0,0.0001733,4]
[353561315,1739914263392,-500.0,0.00017338,2]
[353561316,1739914263402,-160.0,0.00017426,5]
[353561317,1739914263414,-1000.0,0.0001743,4]
[353561318,1739914263424,-750.00242755,0.00017436,2]
[353561319,1739914263434,-500.0,0.00017438,2]
[353561320,1739914263444,-8194.28740704,0.000175,10]
[353561321,1739914263454,-1000.0,0.000175,4]
[353561322,1739914263464,-150.0,0.00017522,2]
[353561323,1739914263473,-150.0,0.00017522,2]
[353561324,1739914263483,-499.0,0.00017534,4]
[353561325,1739914263493,-500.0,0.00017538,2]
[353561326,1739914263503,-1424.00008562,0.00017542,2]
[353561327,1739914263513,-1000.0,0.0001758,4]
[353561328,1739914263524,-500.0,0.00017638,2]
[353561329,1739914263535,-161.081112,0.0001764,15]
[353561330,1739914263545,-161.081112,0.0001764,14]
[353561331,1739914263556,-166.160499,0.0001764,15]
[353561332,1739914263566,-1000.0,0.000177,5]
[353561333,1739914263576,-2000.0,0.000177,10]
[353561334,1739914263586,-500.0,0.00017738,2]
[353561335,1739914263595,-1000.0,0.0001776,4]
[353561336,1739914263605,-1000.0,0.0001777,4]
[353561337,1739914263615,-538.0,0.00017778,2]
[353561338,1739914263625,-1971.0,0.00017778,2]
[353561339,1739914263635,-2289.0,0.00017778,2]
[353561340,1739914263645,-22618.90496927,0.0001782,2]
[353561341,1739914263656,-500.0,0.00017838,2]
[353561342,1739914263666,-1000.0,0.0001785,5]
[353561343,1739914263675,-153.51,0.000179,31]
[353561344,1739914263685,-153.51,0.000179,31]
[353561345,1739914263695,-153.51,0.000179,31]
[353561346,1739914263705,-153.51,0.000179,31]
[353561347,1739914263715,-153.51,0.000179,31]
[353561348,1739914263724,-153.51,0.000179,31]
[353561349,1739914263734,-153.51,0.000179,31]
[353561350,1739914263744,-153.51,0.000179,31]
[353561351,1739914263754,-267.607392,0.000179,2]
[353561352,1739914263764,-267.607392,0.000179,2]
[353561353,1739914263774,-1424.00008562,0.000179,2]
[353561354,1739914263784,-500.0,0.00017938,2]
[353561355,1739914263793,-15263.36268943,0.00017973,3]
[353561356,1739914263803,-160.0,0.0001799,6]
[353561357,1739914263813,-160.0,0.0001799,5]
[353561358,1739914263823,-2200.0,0.00017999,2]
[353561359,1739914263833,-5185.44544817,0.00018,30]
[353561360,1739914263843,-200255.1873145,0.00018,15]
[353561363,1739914503203,150.6339786,9.488e-05,2]
[353561364,1739914528570,400.0,9.041e-05,2]
[353561374,1739915229102,-300.0,0.00012315,2]
[353561375,1739915229125,-250.0,0.00012713,2]
[353561376,1739915229147,-300.0,0.0001282,2]
[353561377,1739915229170,-1136.61401132,0.00012822,2]
[353561378,1739915232162,-11498.51800427,0.00012822,2]
[353561379,1739915239089,-676.69324601,0.00012693,2]
[353561403,1739915431927,-7946.29390586,0.00012566,2]
[353561406,1739915431938,-158.8405508,0.00012716,2]
[353561407,1739915431948,-300.0,0.0001282,2]
[353561410,1739915431958,-12264.86798441,0.00012822,2]
[353561412,1739915431967,-183.65111481,0.00013598,2]
[353561414,1739915431977,-184.52770545,0.00013697,2]
[353561416,1739915431989,-175.94549627,0.00013697,2]
[353561418,1739915431998,-500.0,0.00013698,2]
[353561420,1739915432008,-500.0,0.00013698,2]
[353561422,1739915432018,-500.0,0.00013698,2]
[353561424,1739915432028,-500.0,0.00013698,2]
[353561426,1739915432037,-240.5343183,0.00013698,2]
[353561428,1739915432047,-500.0,0.00013698,2]
[353561430,1739915432057,-591.09378664,0.00013698,2]
[353561432,1739915432067,-500.0,0.00013698,2]
[353561434,1739915432076,-500.0,0.00013698,2]
[353561436,1739915432086,-500.0,0.00013698,2]
[353561438,1739915432095,-500.0,0.00013698,2]
[353561440,1739915432104,-506.41634077,0.00013698,2]
[353561442,1739915432113,-500.0,0.00013698,2]
[353561444,1739915432123,-500.0,0.00013698,2]
[353561446,1739915432135,-500.0,0.00013698,2]
[353561448,1739915432144,-500.0,0.00013698,2]
[353561450,1739915432154,-500.0,0.00013698,2]
[353561452,1739915432163,-510.0,0.00013698,2]
[353561454,1739915432172,-500.0,0.00013698,2]
[353561456,1739915432182,-500.0,0.00013698,2]
[353561458,1739915432191,-500.0,0.00013698,2]
[353561460,1739915432200,-229.27046621,0.00013698,2]
[353561462,1739915432209,-500.0,0.00013698,2]
[353561464,1739915432218,-500.0,0.00013698,2]
[353561466,1739915432228,-626.76181273,0.00013698,2]
[353561468,1739915432237,-500.0,0.00013698,2]
[353561470,1739915432247,-533.60815303,0.00013698,2]
[353561472,1739915432256,-500.0,0.00013698,2]
[353561474,1739915432265,-535.26875602,0.00013698,2]
[353561476,1739915432274,-500.0,0.00013698,2]
[353561478,1739915432284,-500.0,0.00013698,2]
[353561480,1739915432293,-500.0,0.00013698,2]
[353561482,1739915432302,-500.0,0.00013698,2]
[353561484,1739915432313,-500.78934066,0.00013698,2]
[353561486,1739915432322,-500.0,0.00013698,2]
[353561488,1739915432331,-500.0,0.00013698,2]
[353561490,1739915432340,-500.0,0.00013698,2]
[353561492,1739915432349,-522.27611043,0.00013698,2]
[353561494,1739915432358,-500.0,0.00013698,2]
[353561496,1739915432367,-367.64546138,0.00013698,2]
[353561498,1739915432377,-500.0,0.00013698,2]
[353561500,1739915432389,-500.0,0.00013698,2]
[353561502,1739915432398,-500.0,0.00013698,2]
[353561504,1739915432407,-500.0,0.00013698,2]
[353561506,1739915432416,-500.0,0.00013698,2]
[353561508,1739915432426,-500.0,0.00013698,2]
[353561510,1739915432438,-500.0,0.00013698,2]
[353561512,1739915432448,-500.0,0.00013698,2]
[353561514,1739915432457,-500.0,0.00013698,2]
[353561516,1739915432466,-500.0,0.00013698,2]
[353561518,1739915432477,-500.0,0.00013698,2]
[353561520,1739915432486,-500.0,0.00013698,2]
[353561522,1739915432495,-500.0,0.00013698,2]
[353561524,1739915432505,-500.0,0.00013698,2]
[353561526,1739915432521,-500.0,0.00013698,2]
[353561528,1739915432530,-500.0,0.00013698,2]
[353561530,1739915432539,-500.0,0.00013698,2]
[353561532,1739915432548,-500.0,0.00013698,2]
[353561534,1739915432557,-500.0,0.00013698,2]
[353561536,1739915432566,-500.0,0.00013698,2]
[353561538,1739915432575,-500.0,0.00013698,2]
[353561540,1739915432584,-500.0,0.00013698,2]
[353561542,1739915432594,-500.0,0.00013698,2]
[353561544,1739915432603,-500.0,0.00013698,2]
[353561546,1739915432612,-500.0,0.00013698,2]
[353561548,1739915432621,-500.0,0.00013698,2]
[353561550,1739915432633,-500.0,0.00013698,2]
[353561552,1739915432642,-500.0,0.00013698,2]
[353561554,1739915432652,-501.17778617,0.00013698,2]
[353561556,1739915432661,-500.0,0.00013698,2]
[353561557,1739915432670,-500.0,0.00013698,2]
[353561558,1739915432680,-202.68673891,0.00013698,2]
[353561559,1739915432689,-500.0,0.00013698,2]
[353561560,1739915432698,-500.0,0.00013698,2]
[353561561,1739915432707,-500.0,0.00013698,2]
[353561562,1739915432717,-500.0,0.00013698,2]
[353561563,1739915432726,-500.0,0.00013698,2]
[353561564,1739915432735,-500.0,0.00013698,2]
[353561565,1739915432745,-500.0,0.00013698,2]
[353561566,1739915432754,-500.0,0.00013698,2]
[353561567,1739915432763,-500.0,0.00013698,2]
[353561568,1739915432773,-500.0,0.00013698,2]
[353561569,1739915432782,-500.0,0.00013698,2]
[353561570,1739915432791,-500.0,0.00013698,2]
[353561571,1739915432801,-500.0,0.00013698,2]
[353561572,1739915432810,-500.0,0.00013698,2]
[353561573,1739915432819,-500.0,0.00013698,2]
[353561574,1739915432828,-500.0,0.00013698,2]
[353561575,1739915432837,-610.59,0.00013698,2]
[353561576,1739915432846,-500.0,0.00013698,2]
[353561577,1739915432856,-500.0,0.00013698,2]
[353561578,1739915432866,-649.0401394,0.00013698,2]
[353561579,1739915432875,-500.0,0.00013698,2]
[353561580,1739915432886,-591.08879849,0.00013698,2]
[353561581,1739915432895,-500.0,0.00013698,2]
[353561582,1739915432905,-500.0,0.00013698,2]
[353561583,1739915432914,-500.0,0.00013698,2]
[353561584,1739915432923,-500.0,0.00013698,2]
[353561585,1739915432933,-500.0,0.00013698,2]
[353561586,1739915432942,-500.0,0.00013698,2]
[353561587,1739915432952,-500.0,0.00013698,2]
[353561588,1739915432962,-500.0,0.00013698,2]
[353561589,1739915432971,-500.0,0.00013698,2]
[353561590,1739915432980,-500.0,0.00013698,2]
[353561591,1739915432990,-500.0,0.00013698,2]
[353561592,1739915432999,-500.0,0.00013698,2]
[353561593,1739915433121,-500.0,0.00013698,2]
[353561594,1739915433132,-500.0,0.00013698,2]
[353561595,1739915433142,-500.0,0.00013698,2]
[353561596,1739915433151,-500.0,0.00013698,2]
[353561597,1739915433161,-500.0,0.00013698,2]
[353561598,1739915433171,-500.0,0.00013698,2]
[353561599,1739915433181,-595.78997512,0.00013698,2]
[353561600,1739915433191,-500.0,0.00013698,2]
[353561601,1739915433200,-500.0,0.00013698,2]
[353561602,1739915433210,-500.0,0.00013698,2]
[353561603,1739915433220,-500.0,0.00013698,2]
[353561604,1739915433229,-500.0,0.00013698,2]
[353561605,1739915433238,-500.0,0.00013698,2]
[353561606,1739915433248,-500.0,0.00013698,2]
[353561607,1739915433258,-500.0,0.00013698,2]
[353561608,1739915433267,-500.0,0.00013698,2]
[353561609,1739915433277,-500.0,0.00013698,2]
[353561610,1739915433286,-500.0,0.00013698,2]
[353561611,1739915433295,-500.0,0.00013698,2]
[353561612,1739915433305,-626.16841571,0.00013698,2]
[353561613,1739915433315,-500.0,0.00013698,2]
[353561614,1739915433324,-500.0,0.00013698,2]
[353561615,1739915433334,-503.40739785,0.00013698,2]
[353561616,1739915433343,-500.0,0.00013698,2]
[353561617,1739915433353,-500.0,0.00013698,2]
[353561618,1739915433363,-500.0,0.00013698,2]
[353561619,1739915433372,-500.0,0.00013698,2]
[353561620,1739915433384,-500.0,0.00013698,2]
[353561621,1739915433394,-504.43148163,0.00013698,2]
[353561622,1739915433403,-500.0,0.00013698,2]
[353561623,1739915433413,-500.0,0.00013698,2]
[353561624,1739915433423,-500.0,0.00013698,2]
[353561625,1739915433435,-500.0,0.00013698,2]
[353561626,1739915433446,-500.0,0.00013698,2]
[353561627,1739915433456,-500.0,0.00013698,2]
[353561628,1739915433466,-500.0,0.00013698,2]
[353561629,1739915433476,-500.0,0.00013698,2]
[353561630,1739915433487,-504.51584275,0.00013698,2]
[353561631,1739915433496,-500.0,0.00013698,2]
[353561632,1739915433506,-500.0,0.00013698,2]
[353561633,1739915433517,-500.0,0.00013698,2]
[353561634,1739915433527,-500.0,0.00013698,2]
[353561635,1739915433536,-500.0,0.00013698,2]
[353561636,1739915433545,-500.0,0.00013698,2]
[353561637,1739915433554,-500.0,0.00013698,2]
[353561638,1739915433564,-500.0,0.00013698,2]
[353561639,1739915433573,-500.0,0.00013698,2]
[353561640,1739915433583,-500.0,0.00013698,2]
[353561641,1739915433592,-500.0,0.00013698,2]
[353561642,1739915433602,-500.0,0.00013698,2]
[353561643,1739915433611,-500.0,0.00013698,2]
[353561644,1739915433620,-233.48094023,0.00013698,2]
[353561645,1739915433632,-500.0,0.00013698,2]
[353561646,1739915433642,-500.0,0.00013698,2]
[353561647,1739915433651,-500.0,0.00013698,2]
[353561648,1739915433661,-500.0,0.00013698,2]
[353561649,1739915433671,-500.0,0.00013698,2]
[353561650,1739915433680,-500.0,0.00013698,2]
[353561651,1739915433691,-500.0,0.00013698,2]
[353561652,1739915433701,-500.0,0.00013698,2]
[353561653,1739915433710,-500.0,0.00013698,2]
[353561654,1739915433720,-500.0,0.00013698,2]
[353561655,1739915433729,-500.0,0.00013698,2]
[353561656,1739915433739,-500.0,0.00013698,2]
[353561657,1739915433748,-500.0,0.00013698,2]
[353561658,1739915433758,-500.0,0.00013698,2]
[353561659,1739915433769,-500.0,0.00013698,2]
[353561660,1739915433779,-500.0,0.00013698,2]
[353561661,1739915433790,-500.0,0.00013698,2]
[353561662,1739915433800,-500.0,0.00013698,2]
[353561663,1739915433810,-500.0,0.00013698,2]
[353561664,1739915433820,-500.0,0.00013698,2]